bitfinex-derivatives/quotes_ETHF0:USTF0_20250103
["timestamp","ask_amount","ask_price","bid_price","bid_amount"]
[1735919764934,7.98211489,3570.0,3569.0,4.889]
[1735919765130,4.77431489,3570.0,3569.7,3.2078]
[1735919765330,3.2078,3569.8,3569.3,4.889]
[1735919765538,0.28034,3569.8,3569.3,4.889]
[1735919765839,4.77431489,3570.0,3569.5,0.28035]
[1735919766231,4.77431489,3570.0,3569.6,0.28034]
[1735919766432,0.28034,3569.8,3569.6,0.28034]
[1735919766835,0.28034,3569.7,3569.6,0.28035]
[1735919767031,0.28034,3569.8,3569.6,0.28035]
[1735919767229,0.28034,3569.7,3569.6,0.28035]
[1735919767637,2.4855,3570.0,3569.5,2.14638839]
[1735919767842,0.28034,3569.7,3569.5,2.42673839]
[1735919768241,0.28034,3569.7,3569.6,0.28035]
[1735919768744,2.4855,3570.0,3569.5,2.42673839]
[1735919768940,2.4855,3570.0,3569.5,2.14638839]
[1735919769142,0.28034,3569.8,3569.6,0.28034]
[1735919769440,0.28034,3569.7,3569.6,4.889]
[1735919769746,0.28034,3569.7,3569.6,5.16935]
[1735919769939,2.4855,3570.0,3569.6,5.16935]
[1735919769940,5.0432,3570.1,3569.6,4.889]
[1735919770140,2.4697,3570.5,3570.2,0.2803]
[1735919770441,5.6775,3570.5,3570.0,2.14638839]
[1735919770644,0.28029,3570.4,3570.1,0.2803]
[1735919770840,2.4697,3570.5,3570.0,2.14638839]
[1735919771038,5.63567,3570.7,3570.4,0.28029]
[1735919771235,5.63567,3570.7,3570.5,0.28028]
[1735919771736,5.3554,3570.7,3570.4,5.16928]
[1735919771936,0.28027,3570.6,3570.4,5.16928]
[1735919772135,5.3554,3570.7,3570.4,4.889]
[1735919772340,0.28028,3570.5,3570.4,4.889]
[1735919772941,5.3554,3570.7,3570.4,4.889]
[1735919773346,0.28028,3570.6,3570.4,5.16928]
[1735919773554,0.28028,3570.5,3570.4,4.889]
[1735919773848,3.48808,3570.5,3570.4,4.889]
[1735919774438,0.28028,3570.5,3570.4,4.889]
[1735919774847,3.2078,3570.6,3570.4,4.889]
[1735919775148,0.28028,3570.5,3570.4,4.889]
[1735919775440,0.28029,3570.3,3570.2,0.2803]
[1735919775642,3.2078,3570.6,3570.1,4.889]
[1735919776044,3.2078,3570.2,3570.1,4.889]
[1735919776246,3.4881,3570.2,3570.1,4.889]
[1735919776946,3.4881,3570.3,3570.1,5.16931]
[1735919777143,3.2078,3570.3,3570.1,4.889]
[1735919777347,3.4881,3570.3,3570.1,4.889]
[1735919777550,3.2078,3570.3,3570.2,0.2803]
[1735919778345,0.28029,3570.3,3570.1,4.889]
[1735919778550,0.2803,3570.2,3570.1,4.889]
[1735919778747,0.2803,3570.2,3570.1,5.16931]
[1735919779148,0.2803,3570.2,3570.1,4.889]
[1735919779449,2.9111,3570.2,3570.1,4.889]
[1735919780755,2.9111,3570.2,3570.1,5.16931]
[1735919780955,2.6308,3570.2,3570.1,4.889]
[1735919781159,2.9111,3570.2,3570.1,4.889]
[1735919781349,0.28032,3570.0,3569.7,7.03538839]
[1735919781653,2.6308,3570.2,3569.7,7.03538839]
[1735919781654,2.9111,3570.2,3569.7,7.03538839]
[1735919781848,2.91111,3570.2,3569.7,7.03538839]
[1735919782054,3.4881,3570.3,3570.0,2.14638839]
[1735919782258,3.2078,3570.3,3570.2,0.2803]
[1735919782958,3.48809,3570.3,3570.0,2.14638839]
[1735919783256,3.48809,3570.3,3570.2,0.2803]
[1735919783457,0.2803,3570.2,3570.0,2.42669839]
[1735919783655,0.2803,3570.2,3569.7,7.03538839]
[1735919783857,0.28031,3570.1,3569.9,0.28032]
[1735919784556,3.2078,3570.3,3569.9,0.28032]
[1735919784751,0.28031,3570.2,3570.0,0.28031]
[1735919784952,2.5053,3570.6,3570.0,3.2078]
[1735919785148,8.5632,3570.7,3570.5,0.28028]
[1735919785356,8.5632,3570.7,3570.6,0.28027]
[1735919785561,5.3554,3570.7,3570.6,0.28027]
[1735919786655,5.3554,3570.7,3570.4,2.14638839]
[1735919786853,5.3554,3570.7,3570.1,12.23368839]
[1735919787164,0.28028,3570.5,3570.4,0.28028]
[1735919787451,0.28027,3570.6,3570.5,0.28027]
[1735919787647,0.28028,3570.5,3570.4,0.28028]
[1735919788255,5.3554,3570.7,3570.1,9.66688839]
[1735919788455,5.3554,3570.7,3570.1,7.03538839]
[1735919788658,0.28028,3570.5,3570.3,0.28029]
[1735919788959,0.28028,3570.5,3570.1,7.03538839]
[1735919789260,0.28028,3570.5,3570.4,0.28029]
[1735919789261,2.78218,3570.5,3570.4,0.28029]
[1735919789757,2.5019,3570.5,3570.1,7.03538839]
[1735919789957,0.28029,3570.4,3570.1,7.03538839]
[1735919790157,0.28029,3570.4,3570.3,0.28029]
[1735919790758,2.5019,3570.5,3570.1,2.14638839]
[1735919790759,2.5019,3570.5,3570.4,0.28029]
[1735919790955,2.5019,3570.5,3570.4,2.42667839]
[1735919791652,3.2078,3570.6,3570.5,0.28028]
[1735919791851,5.3554,3570.7,3570.6,0.28027]
[1735919792857,5.8656,3571.0,3570.9,0.28025]
[1735919793162,5.8656,3571.0,3570.9,2.42663839]
[1735919793358,2.6578,3571.0,3570.9,2.42663839]
[1735919794659,2.6578,3571.0,3570.6,5.16927]
[1735919794660,6.56621,3571.0,3570.6,4.889]
[1735919794959,0.28026,3570.8,3570.7,0.28026]
[1735919795264,2.655,3570.9,3570.8,0.28025]
[1735919796658,2.655,3570.9,3570.8,2.42663839]
[1735919797260,2.93525,3570.9,3570.8,2.42663839]
[1735919797467,2.655,3570.9,3570.8,2.42663839]
[1735919799166,2.93525,3570.9,3570.8,2.42663839]
[1735919799356,2.655,3570.9,3570.8,2.42663839]
[1735919799961,2.93525,3570.9,3570.8,2.42663839]
[1735919800265,0.28027,3570.6,3570.5,4.889]
[1735919800465,3.48807,3570.6,3570.5,4.889]
[1735919800962,2.90976,3570.8,3570.7,0.28026]
[1735919801160,2.90975,3570.8,3570.7,0.28026]
[1735919801355,0.28027,3570.7,3570.6,0.28026]
[1735919801962,0.28027,3570.6,3570.5,7.03538839]
[1735919802164,0.28027,3570.6,3570.5,2.14638839]
[1735919802763,3.48807,3570.6,3570.5,2.14638839]
[1735919802965,0.28027,3570.6,3570.5,2.14638839]
[1735919803465,0.28027,3570.6,3570.5,2.42666839]
[1735919803769,0.28027,3570.6,3570.5,2.14638839]
[1735919804070,3.2078,3570.6,3570.1,4.889]
[1735919804265,0.28032,3570.0,3569.9,2.14638839]
[1735919804975,0.28034,3569.7,3569.6,2.14638839]
[1735919805266,0.28033,3569.9,3569.8,0.28033]
[1735919805567,4.38508653,3570.7,3570.6,5.16927]
[1735919805759,5.3085,3571.8,3570.8,4.889]
[1735919805962,5.3085,3571.8,3571.7,2.42656839]
[1735919806468,5.3085,3571.8,3571.7,5.63436839]
[1735919806664,5.3085,3571.8,3571.7,2.42656839]
[1735919808371,5.3085,3571.8,3571.7,0.28018]
[1735919809075,2.7281,3571.8,3571.7,0.28018]
[1735919809673,2.7281,3571.8,3571.5,2.71183374]
[1735919809875,2.7281,3571.8,3571.7,0.28018]
[1735919811171,2.7281,3571.8,3571.5,7.60083374]
[1735919811372,2.93909,3571.7,3571.5,4.889]
[1735919811878,2.6589,3571.7,3571.6,0.28019]
[1735919812479,2.6589,3571.7,3571.5,7.60083374]
[1735919812686,2.6589,3571.7,3571.6,0.28019]
[1735919814677,2.93909,3571.7,3571.5,7.88103374]
[1735919814877,3.07935705,3571.7,3571.5,7.60083374]
[1735919815085,0.28019,3571.6,3571.5,7.60083374]
[1735919815486,3.35954705,3571.7,3571.5,7.60083374]
[1735919815685,3.07935705,3571.7,3571.5,7.60083374]
[1735919815887,3.07935705,3571.7,3571.6,0.28019]
[1735919816181,0.42045705,3571.7,3571.6,0.28019]
[1735919816389,2.7281,3571.8,3571.7,0.28018]
[1735919816881,2.7281,3571.8,3571.5,7.60083374]
[1735919817082,2.7281,3571.8,3571.7,0.28018]
[1735919817483,3.14854372,3571.8,3571.7,0.28018]
[1735919817682,3.14854372,3571.8,3571.6,0.28019]
[1735919817981,3.14854372,3571.8,3571.3,4.889]
[1735919817982,6.35634372,3571.8,3571.3,4.889]
[1735919818187,0.28023,3571.2,3570.9,0.28024]
[1735919818381,1.325,3571.7,3571.1,2.71183374]
[1735919818579,2.4607,3571.6,3571.1,2.71183374]
[1735919818777,2.4607,3571.6,3571.5,0.2802]
[1735919818980,2.4997,3571.7,3571.6,0.28019]
[1735919819181,2.77989,3571.7,3571.5,2.99203374]
[1735919819384,2.92014372,3571.7,3571.5,2.71183374]
[1735919819587,2.92014372,3571.7,3571.6,0.28019]
[1735919819890,2.92014372,3571.7,3571.2,0.28022]
[1735919820283,3.2078,3571.6,3571.1,2.71183374]
[1735919820588,0.28023,3571.1,3570.9,0.28024]
[1735919820886,2.84294,3571.0,3570.8,0.28025]
[1735919821086,5.1599,3570.9,3570.8,0.28025]
[1735919821288,5.1599,3570.9,3570.7,10.80863374]
[1735919821486,5.1599,3570.9,3570.7,2.71183374]
[1735919821681,5.1599,3570.9,3570.8,0.28025]
[1735919822087,5.1599,3570.9,3570.7,2.71183374]
[1735919822386,7.35533985,3570.9,3570.8,0.28025]
[1735919822892,7.63558985,3570.9,3570.7,2.99209374]
[1735919823090,7.63558985,3570.9,3570.7,2.71183374]
[1735919823291,7.35533985,3570.9,3570.7,2.71183374]
[1735919823596,0.28028,3570.5,3570.4,4.889]
[1735919823892,3.2078,3570.8,3570.0,7.60083374]
[1735919824090,0.28032,3570.0,3569.9,4.889]
[1735919824291,3.2078,3570.2,3569.9,4.889]
[1735919824588,2.4849,3570.1,3570.0,0.28032]
[1735919824983,2.76521,3570.1,3569.9,5.16932]
[1735919825185,4.96064985,3570.1,3569.9,5.16932]
[1735919825386,4.68033985,3570.1,3570.0,0.28032]
[1735919826085,4.96064985,3570.1,3569.9,5.16932]
[1735919826286,2.19543985,3570.1,3570.0,2.99215374]
[1735919826487,2.19543985,3570.1,3570.0,6.19995374]
[1735919826789,2.19543985,3570.2,3570.1,0.28031]
[1735919827887,2.47573985,3570.2,3570.0,6.19994374]
[1735919828087,2.4849,3570.7,3570.0,2.71183374]
[1735919828088,0.28031,3570.1,3570.0,2.71183374]
[1735919828393,3.2078,3570.5,3570.0,2.71183374]
[1735919828596,3.2078,3570.4,3570.0,2.71183374]
[1735919828989,3.2078,3570.4,3569.9,4.889]
[1735919829289,3.2078,3570.4,3569.7,0.28034]
[1735919829290,0.28033,3569.9,3569.8,4.889]
[1735919829793,0.28032,3570.0,3569.8,5.16933]
[1735919829989,0.28031,3570.1,3569.9,0.28033]
[1735919830296,0.28032,3570.0,3569.9,2.14432497]
[1735919830496,5.48701,3570.1,3569.9,2.42464497]
[1735919830896,5.2067,3570.1,3569.9,2.14432497]
[1735919831196,2.47575985,3570.0,3569.9,2.14432497]
[1735919832094,2.19543985,3570.0,3569.9,5.63245497]
[1735919832794,7.40213985,3570.1,3570.0,0.28032]
[1735919832994,7.68244985,3570.1,3569.9,2.42464497]
[1735919833197,2.19543985,3570.1,3569.9,2.14432497]
[1735919833388,2.19543985,3570.1,3570.0,0.28032]
[1735919834293,3.29494966,3570.3,3569.9,4.72102497]
[1735919834294,2.19543985,3570.3,3569.9,4.72102497]
[1735919834495,2.47572985,3570.3,3570.2,2.14292639]
[1735919834798,2.19543985,3570.3,3570.2,2.42322639]
[1735919835094,2.47572985,3570.3,3570.2,2.14292639]
[1735919835598,0.28032,3570.0,3569.9,7.03332497]
[1735919835995,0.28032,3570.0,3569.9,4.889]
[1735919837392,2.47575985,3570.0,3569.9,4.889]
[1735919837792,0.28034,3569.7,3569.6,2.14432497]
[1735919838395,3.2078,3569.8,3569.4,4.889]
[1735919838894,7.8726,3569.9,3569.6,2.14432497]
[1735919839095,5.2878,3569.9,3569.8,0.28033]
[1735919840095,5.2878,3569.9,3569.6,2.14432497]
[1735919840596,0.28033,3569.8,3569.7,0.28034]
[1735919840902,0.28034,3569.7,3569.6,2.14432497]
[1735919842102,2.19532327,3569.7,3569.3,7.03332497]
[1735919842396,0.28036,3569.4,3569.3,4.889]
[1735919843602,0.28036,3569.4,3569.3,7.03332497]
[1735919844604,0.28036,3569.4,3569.3,7.31369497]
[1735919844902,0.28036,3569.4,3569.3,7.03332497]
[1735919845300,2.81336,3569.5,3569.4,0.28036]
[1735919845501,2.81336,3569.5,3569.3,7.03332497]
[1735919845502,2.533,3569.5,3569.3,7.03332497]
[1735919845703,0.28036,3569.4,3569.3,7.31369497]
[1735919846101,0.28036,3569.4,3569.3,7.03332497]
[1735919846306,0.28036,3569.4,3569.3,4.889]
[1735919846801,7.0648,3569.5,3568.7,2.14432497]
[1735919847005,0.28042,3568.7,3568.6,4.889]
[1735919848406,2.6509,3568.8,3568.7,0.28042]
[1735919848407,2.93132,3568.8,3568.7,0.28042]
[1735919848596,2.6509,3568.8,3568.6,7.03332497]
[1735919848801,0.28042,3568.7,3568.6,7.31374497]
[1735919849002,2.19532327,3569.4,3568.7,4.889]
[1735919849204,2.19532327,3569.4,3569.3,7.31369497]
[1735919849498,0.28034,3569.8,3569.3,7.31369497]
[1735919849499,4.39267486,3569.6,3569.5,0.28036]
[1735919849699,4.39267486,3569.6,3569.5,2.42468497]
[1735919850913,8.44806,3570.3,3569.5,7.03332497]
[1735919850914,7.7473,3570.3,3569.5,7.03332497]
[1735919851110,7.7473,3570.3,3569.7,0.28034]
[1735919851309,0.28033,3569.8,3569.5,7.03332497]
[1735919851711,7.7473,3570.3,3569.5,7.03332497]
[1735919851906,0.28035,3569.6,3569.5,7.03332497]
[1735919852103,0.28035,3569.6,3569.5,4.889]
[1735919852705,3.48815,3569.6,3569.5,4.889]
[1735919853102,0.70094,3569.4,3568.6,2.14432497]
[1735919853317,0.28041,3568.9,3568.8,0.28041]
[1735919853513,0.2804,3569.0,3568.9,0.2804]
[1735919853815,2.6656,3569.5,3568.6,2.14432497]
[1735919854012,0.2804,3569.0,3568.9,0.2804]
[1735919854314,0.70092,3569.4,3568.6,2.14432497]
[1735919854708,0.28043,3568.6,3568.5,2.78373]
[1735919854911,0.28044,3568.5,3568.3,7.31376497]
[1735919855210,0.28044,3568.4,3568.3,7.31376497]
[1735919855414,0.28044,3568.4,3568.3,2.14432497]
[1735919857515,2.6949,3568.6,3568.3,2.14432497]
[1735919857815,0.28044,3568.4,3568.3,2.14432497]
[1735919858207,2.6949,3568.6,3568.3,2.14432497]
[1735919858414,0.28044,3568.4,3568.3,2.42477497]
[1735919858616,0.28044,3568.5,3568.3,2.42477497]
[1735919858915,2.6949,3568.6,3568.3,2.14432497]
[1735919859311,2.6949,3568.6,3568.5,0.28044]
[1735919859507,2.6808,3568.7,3568.6,0.28043]
[1735919859712,2.19046075,3568.9,3568.6,2.14432497]
[1735919859907,2.5323,3569.1,3568.6,2.14432497]
[1735919859908,2.19046075,3569.0,3568.6,2.14432497]
[1735919860412,0.28042,3568.8,3568.6,2.14432497]
[1735919860711,2.19046075,3569.0,3568.6,2.14432497]
[1735919860917,0.28042,3568.8,3568.7,0.28042]
[1735919862417,5.2037,3569.1,3568.7,0.28042]
[1735919862716,0.28041,3568.8,3568.7,0.28042]
[1735919862905,5.2037,3569.1,3568.6,2.14432497]
[1735919863109,0.28041,3569.0,3568.9,0.2804]
[1735919863305,5.2037,3569.1,3568.6,2.14432497]
[1735919863515,5.48409,3569.1,3569.0,0.2804]
[1735919863716,0.28041,3569.0,3568.9,0.2804]
[1735919863916,2.19046075,3569.2,3568.9,3.2078]
[1735919864114,2.19046075,3569.2,3569.1,2.42471497]
[1735919864311,5.90929113,3569.4,3569.3,0.28037]
[1735919866018,2.6236,3569.4,3569.3,0.28037]
[1735919866214,2.90396,3569.4,3569.3,0.28037]
[1735919866815,0.28039,3569.2,3569.1,0.28038]
[1735919867019,0.28039,3569.1,3569.0,2.9835]
[1735919868012,2.6236,3569.4,3569.0,2.7031]
[1735919868219,0.28039,3569.2,3569.1,0.28038]
[1735919868418,2.6236,3569.4,3569.0,2.7031]
[1735919868623,0.28039,3569.1,3569.0,2.98349]
[1735919868822,0.28038,3569.2,3569.1,0.28039]
[1735919870119,2.47464787,3569.2,3569.1,0.28039]
[1735919870314,2.47464787,3569.2,3569.1,0.29238959]
[1735919870515,2.47464787,3569.2,3569.1,0.37024464]
[1735919870717,2.47464787,3569.2,3569.1,0.08985464]
[1735919871219,2.47464787,3569.2,3569.1,0.37024464]
[1735919873023,2.19426787,3569.2,3569.1,2.51456961]
[1735919874226,2.47464787,3569.2,3569.1,2.51456961]
[1735919874419,2.19426787,3569.2,3569.1,2.51456961]
[1735919874829,2.19426787,3569.3,3569.1,2.23417961]
[1735919875021,2.47463787,3569.3,3569.2,0.28038]
[1735919875226,2.19426787,3569.3,3569.2,0.28038]
[1735919875428,2.19426787,3569.3,3569.2,0.37023464]
[1735919875922,2.19426787,3569.3,3569.2,2.93893464]
[1735919876231,6.49349113,3569.5,3569.4,0.28036]
[1735919876424,6.49349113,3569.5,3569.4,2.51453961]
[1735919876425,3.28569113,3569.5,3569.4,2.51453961]
[1735919877120,3.56605113,3569.5,3569.4,0.08985464]
[1735919877324,3.28569113,3569.5,3569.4,0.08985464]
[1735919877524,0.28036,3569.5,3569.4,0.37021464]
[1735919877819,2.19858936,3569.6,3569.5,0.28036]
[1735919878425,2.19858936,3569.6,3569.5,0.29235959]
[1735919878623,2.19858936,3569.6,3569.5,0.37021464]
[1735919878932,3.28569113,3569.7,3569.5,0.37021464]
[1735919879223,0.28035,3569.6,3569.5,0.37021464]
[1735919879530,0.28035,3569.6,3569.5,0.08985464]
[1735919879727,3.56604113,3569.7,3569.5,0.37021464]
[1735919879926,0.28035,3569.6,3569.5,0.37020464]
[1735919880124,0.28035,3569.6,3569.5,0.08985464]
[1735919880330,0.28035,3569.6,3569.5,0.37021464]
[1735919880632,0.28035,3569.6,3569.5,0.08985464]
[1735919881334,2.75295,3569.6,3569.5,0.08985464]
[1735919881522,5.96075,3569.6,3569.5,0.08985464]
[1735919881730,9.66715059,3569.6,3569.5,0.08985464]
[1735919882342,0.2804,3569.0,3568.9,3.4882]
[1735919882827,0.28039,3569.1,3569.0,0.28039]
[1735919883033,0.28039,3569.2,3569.1,0.28038]
[1735919883335,0.2804,3569.1,3569.0,0.28039]
[1735919883529,3.41222,3569.5,3568.9,3.2078]
[1735919883730,0.2804,3569.0,3568.9,3.48819]
[1735919885038,2.7113,3569.5,3568.9,3.2078]
[1735919885338,2.7113,3569.5,3569.0,0.701]
[1735919885339,4.4029843,3569.4,3569.0,0.701]
[1735919885531,4.4029843,3569.4,3569.3,2.42469497]
[1735919886328,4.4029843,3569.4,3569.3,5.63249497]
[1735919886529,3.30210893,3569.5,3569.4,0.28036]
[1735919886735,3.30210893,3569.5,3569.4,2.42468497]
[1735919887839,0.28034,3569.8,3569.5,0.28036]
[1735919887840,2.20119448,3569.6,3569.5,0.28036]
[1735919888633,2.20119448,3569.6,3569.3,3.2078]
[1735919888839,0.28036,3569.4,3569.3,3.2078]
[1735919889037,0.28037,3569.3,3569.2,0.28038]
[1735919889339,0.28037,3569.4,3569.2,0.28038]
[1735919889638,0.28037,3569.4,3569.3,0.28037]
[1735919889839,5.53886,3569.5,3569.4,0.28036]
[1735919890036,2.96446,3569.5,3569.4,0.28036]
[1735919890535,2.6841,3569.5,3569.1,9.58952497]
[1735919890741,2.6841,3569.5,3569.3,0.28037]
[1735919891036,2.6841,3569.5,3569.4,0.28036]
[1735919891541,2.6841,3569.5,3569.1,9.58952497]
[1735919891542,0.28035,3569.6,3569.5,0.28035]
[1735919891743,2.75505,3569.7,3569.6,0.28035]
[1735919893038,3.17575908,3569.7,3569.6,0.28035]
[1735919893638,0.28036,3569.6,3569.5,0.28035]
[1735919893944,0.28037,3569.5,3569.4,0.28036]
[1735919896136,0.70107908,3569.5,3569.4,0.28036]
[1735919896737,0.42070908,3569.5,3569.2,2.6155]
[1735919896945,0.28037,3569.4,3569.3,0.28037]
[1735919897740,0.28042,3568.8,3568.7,0.28041]
[1735919897943,0.28044,3568.5,3568.4,4.3056285]
[1735919898141,0.28043,3568.6,3568.5,0.28043]
[1735919898343,0.28044,3568.5,3568.4,4.5860685]
[1735919898936,0.28044,3568.5,3568.4,4.3056285]
[1735919899147,0.28044,3568.5,3568.4,4.5860685]
[1735919899542,0.28044,3568.5,3568.4,0.28044]
[1735919899543,0.70114908,3568.5,3568.4,0.28044]
[1735919899946,0.42070908,3568.5,3568.4,0.28044]
[1735919900550,0.42070908,3568.5,3568.2,7.4504]
[1735919900741,2.96064,3568.5,3568.4,0.28044]
[1735919902348,2.6802,3568.5,3568.2,2.5614]
[1735919902849,0.28045,3568.4,3568.3,0.28045]
[1735919903737,2.6802,3568.5,3568.2,2.5614]
[1735919903738,0.28045,3568.3,3568.2,2.5614]
[1735919903944,0.28045,3568.3,3568.2,2.84186]
[1735919904343,0.28047,3568.1,3568.0,3.48827]
[1735919904651,8.12826451,3568.5,3567.8,4.3056285]
[1735919904851,0.28048,3567.9,3567.8,4.3056285]
[1735919905354,0.28048,3567.9,3567.7,0.28049]
[1735919905355,0.28049,3567.8,3567.7,4.3056285]
[1735919905544,0.28049,3567.8,3567.7,4.5861285]
[1735919905945,0.28049,3567.8,3567.7,4.3056285]
[1735919906757,0.28049,3567.8,3567.5,3.48831]
[1735919906944,0.2805,3567.7,3567.6,0.2805]
[1735919907149,5.3057,3567.8,3567.5,3.2078]
[1735919907355,5.5862,3567.8,3567.6,0.2805]
[1735919907755,0.28051,3567.6,3567.5,3.48831]
[1735919907949,5.3057,3567.8,3567.6,0.2805]
[1735919908151,2.20119134,3567.7,3567.6,0.2805]
[1735919908655,2.48169134,3567.7,3567.6,0.28051]
[1735919909043,2.20119134,3567.7,3567.5,3.2078]
[1735919909249,2.20119134,3567.7,3567.6,0.28051]
[1735919910552,2.20119134,3567.8,3567.7,0.2805]
[1735919911957,2.20119134,3568.0,3567.9,0.28048]
[1735919913154,2.20119134,3568.1,3567.6,0.70126]
[1735919913460,2.20119134,3568.1,3568.0,0.28047]
[1735919913661,0.28047,3568.0,3567.9,0.28048]
[1735919914158,2.48166134,3568.1,3568.0,0.28047]
[1735919914545,2.48167134,3568.0,3567.9,0.28048]
[1735919914749,2.48167134,3568.0,3567.5,6.05339497]
[1735919914750,2.20119134,3568.0,3567.8,0.28048]
[1735919914950,0.28048,3567.9,3567.8,0.28048]
[1735919915155,0.28048,3567.9,3567.7,0.28049]
[1735919915360,0.28049,3567.9,3567.8,0.28049]
[1735919915660,0.28049,3567.9,3567.5,3.2078]
[1735919915859,2.48167134,3568.0,3567.7,0.28049]
[1735919916161,2.20119134,3567.9,3567.8,0.28049]
[1735919917462,2.48165134,3568.2,3567.6,2.14432497]
[1735919917760,2.20119134,3568.2,3567.8,0.28048]
[1735919917961,2.20119134,3568.2,3567.8,0.28049]
[1735919918155,0.28049,3567.9,3567.8,0.28049]
[1735919918460,2.48165134,3568.2,3568.1,0.28047]
[1735919918651,2.20119134,3568.2,3568.1,0.28047]
[1735919918853,2.20119134,3568.2,3567.5,3.2078]
[1735919918854,2.20119134,3568.0,3567.5,3.2078]
[1735919919056,0.28049,3567.9,3567.5,3.2078]
[1735919919354,2.86339,3567.8,3567.7,0.2805]
[1735919919555,2.5829,3567.8,3567.7,0.2805]
[1735919921353,2.20119134,3568.0,3567.9,0.28048]
[1735919922259,2.20119134,3568.0,3567.6,3.39127]
[1735919922260,2.20119134,3568.2,3568.1,0.28047]
[1735919924663,1.70119134,3568.2,3568.1,10.16947]
[1735919924862,3.30373954,3568.5,3568.1,10.16947]
[1735919924863,3.30373954,3568.5,3568.4,0.28044]
[1735919925158,8.63003954,3569.1,3569.0,0.2804]
[1735919925661,8.91042954,3569.1,3569.0,0.2804]
[1735919925861,8.63003954,3569.1,3568.5,4.889]
[1735919926063,0.2804,3569.0,3568.8,0.28041]
[1735919926264,8.63003954,3569.1,3568.5,4.889]
[1735919926459,0.2804,3569.0,3568.9,0.2804]
[1735919926660,5.3263,3569.1,3568.9,0.2804]
[1735919926661,5.60669,3569.1,3568.9,0.2804]
[1735919926968,5.3263,3569.1,3569.0,0.2804]
[1735919927664,5.60669,3569.1,3568.9,0.2804]
[1735919927864,5.60669,3569.1,3569.0,0.2804]
[1735919928165,5.3263,3569.1,3569.0,0.2804]
[1735919929960,5.60669,3569.1,3569.0,0.2804]
[1735919930265,3.30373954,3569.3,3569.2,0.28038]
[1735919930461,4.4029843,3569.7,3569.2,3.2078]
[1735919930658,4.4029843,3569.8,3569.7,0.28034]
[1735919931764,4.4029843,3569.8,3569.7,5.28034]
[1735919931963,2.5783,3570.6,3569.8,5.58983]
[1735919932162,4.4029843,3570.7,3570.5,3.2078]
[1735919932366,4.4029843,3570.7,3570.6,2.42459497]
[1735919933261,3.9029843,3570.7,3570.6,7.31359497]
[1735919933458,3.2078,3571.4,3570.7,4.889]
[1735919933661,3.2078,3571.4,3571.3,0.28022]
[1735919934463,3.2078,3571.4,3570.9,2.14432497]
[1735919934762,0.2802,3571.5,3571.0,0.28024]
[1735919934963,0.28022,3571.3,3570.8,2.6043]
[1735919935167,0.28021,3571.4,3571.0,2.14432497]
[1735919935366,0.28021,3571.4,3571.1,0.28023]
[1735919935566,5.8123,3571.8,3571.0,2.14432497]
[1735919935767,0.28022,3571.3,3571.0,2.42455497]
[1735919936071,0.2802,3571.6,3571.1,0.28023]
[1735919936263,2.6045,3571.8,3571.0,2.14432497]
[1735919936463,2.6045,3571.8,3571.2,0.28022]
[1735919936760,0.28021,3571.4,3570.9,3.2078]
[1735919936963,0.2802,3571.5,3571.2,0.28022]
[1735919937167,0.2802,3571.6,3571.3,0.28021]
[1735919937464,0.2802,3571.6,3571.1,2.14432497]
[1735919937666,2.6045,3571.8,3570.9,3.2078]
[1735919937667,5.8123,3571.8,3570.9,3.2078]
[1735919937866,0.28021,3571.4,3571.2,0.28022]
[1735919938366,5.8123,3571.8,3571.2,0.28022]
[1735919938567,0.28021,3571.4,3571.2,0.28022]
[1735919938774,0.28023,3571.1,3571.0,0.28024]
[1735919938969,0.28023,3571.2,3570.5,5.35212497]
[1735919939168,3.2078,3571.4,3570.5,5.35212497]
[1735919939367,5.4028,3571.1,3570.8,2.14432497]
[1735919939565,5.4028,3571.1,3571.0,0.28024]
[1735919939776,5.68303,3571.1,3570.8,2.14432497]
[1735919940062,2.87384,3571.0,3570.5,5.35212497]
[1735919940262,2.5936,3571.0,3570.5,5.35212497]
[1735919940463,0.28026,3570.7,3570.5,0.28027]
[1735919940667,0.28026,3570.7,3570.2,2.14432497]
[1735919940863,5.8014,3571.0,3570.2,2.14432497]
[1735919941070,0.28028,3570.5,3570.3,0.28029]
[1735919941570,0.28027,3570.6,3570.3,0.28029]
[1735919941869,5.8014,3571.0,3570.5,2.14432497]
[1735919942063,5.8014,3571.0,3570.5,2.42459497]
[1735919942672,0.28026,3570.8,3570.5,5.63239497]
[1735919942969,0.28025,3570.9,3570.6,0.28027]
[1735919943166,0.28025,3570.9,3570.8,2.14432497]
[1735919943764,2.5936,3571.0,3570.9,0.28025]
[1735919943966,2.5936,3571.0,3570.8,2.14432497]
[1735919944270,2.5936,3571.0,3570.9,0.28025]
[1735919944472,2.5936,3571.0,3570.8,2.14432497]
[1735919944666,2.5936,3571.0,3570.9,0.28025]
[1735919945466,2.6778,3571.1,3571.0,0.28024]
[1735919945666,5.1525,3571.6,3570.9,3.2078]
[1735919945867,5.1525,3571.6,3571.5,2.42452497]
[1735919946467,5.43269,3571.6,3571.5,2.42452497]
[1735919946669,5.1525,3571.6,3571.5,2.14432497]
[1735919946873,2.5253,3571.8,3571.5,2.42452497]
[1735919947072,5.1525,3572.0,3571.9,0.28017]
[1735919947267,5.1525,3572.0,3571.9,2.42449497]
[1735919947472,0.28016,3572.0,3571.9,2.14432497]
[1735919947872,0.28016,3572.0,3571.5,2.6911]
[1735919947873,0.28017,3571.9,3571.8,0.28017]
[1735919948173,7.6778,3572.2,3571.6,2.14432497]
[1735919948371,0.28016,3572.1,3572.0,0.28015]
[1735919948774,0.28016,3572.0,3571.9,2.14432497]
[1735919949067,0.28018,3571.9,3571.8,0.28017]
[1735919949774,0.28017,3571.9,3571.8,0.28017]
[1735919951674,7.6778,3572.2,3571.6,2.14432497]
[1735919951875,0.28018,3571.7,3571.6,2.42450497]